[Event "*** Titled Tuesday Blitz"]
[Site "Chess.com"]
[Date "2021.03.09"]
[Round "4"]
[White "chessmachine14"]
[Black "Hypercar"]
[Result "1-0"]
[WhiteElo "2324"]
[BlackElo "2479"]
[TimeControl "180+1"]
[EndTime "10:40:39 PST"]
[Termination "chessmachine14 won by resignation"]

1. e4 {[%clk 0:03:00.9]} 1... c5 {[%clk 0:02:58.3]} 2. Nf3 {[%clk 0:02:59.4]}
2... e6 {[%clk 0:02:53.1]} 3. d4 {[%clk 0:02:59.3]} 3... cxd4 {[%clk 0:02:53.7]}
4. Nxd4 {[%clk 0:02:59.5]} 4... a6 {[%clk 0:02:54.6]} 5. c4 {[%clk 0:02:51.2]}
5... Nf6 {[%clk 0:02:53.6]} 6. Nc3 {[%clk 0:02:50.9]} 6... Nc6 {[%clk
0:02:51.4]} 7. Be3 {[%clk 0:02:41.3]} 7... d5 {[%clk 0:02:48.8]} 8. cxd5 {[%clk
0:02:31]} 8... exd5 {[%clk 0:02:49.7]} 9. Nxc6 {[%clk 0:02:30.4]} 9... bxc6
{[%clk 0:02:49.5]} 10. e5 {[%clk 0:02:30.8]} 10... Nd7 {[%clk 0:02:49.3]} 11. f4
{[%clk 0:02:08.8]} 11... Bb4 {[%clk 0:02:41.3]} 12. Bd3 {[%clk 0:01:58.1]} 12...
c5 {[%clk 0:02:39.1]} 13. e6 {[%clk 0:01:29.6]} 13... fxe6 {[%clk 0:02:36]} 14.
Qh5+ {[%clk 0:01:28.5]} 14... Kf8 {[%clk 0:02:35.3]} 15. a3 {[%clk 0:00:51.6]}
15... Ba5 {[%clk 0:02:11.8]} 16. O-O {[%clk 0:00:34.4]} 16... d4 {[%clk
0:02:07]} 17. f5 {[%clk 0:00:34.5]} 17... dxe3 {[%clk 0:01:59]} 18. fxe6+ {[%clk
0:00:30.8]} 18... Ke7 {[%clk 0:01:57.2]} 19. Rf7+ {[%clk 0:00:20.7]} 19... Kd6
{[%clk 0:01:54.1]} 20. Qd5+ {[%clk 0:00:17.6]} 20... Kc7 {[%clk 0:01:42.8]} 21.
exd7 {[%clk 0:00:17.7]} 21... Bxd7 {[%clk 0:01:37.3]} 22. Bf5 {[%clk 0:00:17.2]}
22... Kb8 {[%clk 0:01:30.6]} 23. Rxd7 {[%clk 0:00:16.6]} 23... Qb6 {[%clk
0:01:30.4]} 24. Qe5+ {[%clk 0:00:16.4]} 24... Kc8 {[%clk 0:01:28.5]} 25. Rc7+
{[%clk 0:00:16]} 25... Kb8 {[%clk 0:01:26.2]} 26. Rc6+ {[%clk 0:00:12.2]} 26...
Kb7 {[%clk 0:01:26.5]} 27. Rxb6+ {[%clk 0:00:12.4]} 27... Bxb6 {[%clk
0:01:27.4]} 28. Qe7+ {[%clk 0:00:12.5]} 28... Kb8 {[%clk 0:01:24.3]} 29. Nd5
{[%clk 0:00:12.2]} 29... Ra7 {[%clk 0:01:24.7]} 30. Qd6+ {[%clk 0:00:12.1]}
30... Bc7 {[%clk 0:01:25.4]} 31. Nxc7 {[%clk 0:00:12.2]} 31... Rxc7 {[%clk
0:01:26.3]} 32. Rc1 {[%clk 0:00:12.4]} 32... Re8 {[%clk 0:01:23]} 33. Rxc5
{[%clk 0:00:12.1]} 33... e2 {[%clk 0:01:13.1]} 34. Qxc7+ {[%clk 0:00:11.6]}
34... Ka8 {[%clk 0:01:13.8]} 35. Be4+ {[%clk 0:00:11.5]} 35... Rxe4 {[%clk
0:01:13.9]} 36. Qc8+ {[%clk 0:00:12]} 36... Ka7 {[%clk 0:01:14.4]} 37. Rc7+
{[%clk 0:00:12.2]} 37... Kb6 {[%clk 0:01:14.8]} 38. Qb7+ {[%clk 0:00:12.2]}
38... Ka5 {[%clk 0:01:15.4]} 39. Qxe4 {[%clk 0:00:12.3]} 39... e1=Q+ {[%clk
0:01:15.3]} 40. Qxe1+ {[%clk 0:00:12.3]} 1-0

[Event "*** Titled Tuesday Blitz"]
[Site "Chess.com"]
[Date "2021.03.09"]
[Round "4"]
[White "Vsevolod_Ovchinnikov"]
[Black "Legendinunknown"]
[Result "1-0"]
[WhiteElo "2500"]
[BlackElo "2623"]
[TimeControl "180+1"]
[EndTime "10:40:43 PST"]
[Termination "Vsevolod_Ovchinnikov won by checkmate"]

1. d4 {[%clk 0:03:00.9]} 1... Nf6 {[%clk 0:02:59.4]} 2. c4 {[%clk 0:03:01.4]}
2... g6 {[%clk 0:02:58.6]} 3. Nc3 {[%clk 0:02:59.9]} 3... Bg7 {[%clk 0:02:58.8]}
4. e4 {[%clk 0:02:59.9]} 4... d6 {[%clk 0:02:58]} 5. Nf3 {[%clk 0:03:00.1]} 5...
O-O {[%clk 0:02:56.5]} 6. h3 {[%clk 0:03:00.6]} 6... e5 {[%clk 0:02:56.7]} 7. d5
{[%clk 0:03:01.1]} 7... Na6 {[%clk 0:02:56.4]} 8. Be3 {[%clk 0:03:00.1]} 8...
Qe8 {[%clk 0:02:56.4]} 9. g4 {[%clk 0:02:58.9]} 9... Nd7 {[%clk 0:02:54.8]} 10.
Rg1 {[%clk 0:02:56.3]} 10... f5 {[%clk 0:02:47.6]} 11. gxf5 {[%clk 0:02:55.8]}
11... gxf5 {[%clk 0:02:48.5]} 12. Bh6 {[%clk 0:02:40.3]} 12... Rf7 {[%clk
0:02:47.9]} 13. Ng5 {[%clk 0:02:31.9]} 13... Rf6 {[%clk 0:02:04.8]} 14. Ne6
{[%clk 0:02:06.1]} 14... Rxh6 {[%clk 0:02:01.9]} 15. Nxg7 {[%clk 0:02:04.1]}
15... Rg6 {[%clk 0:01:13.4]} 16. Nxe8 {[%clk 0:02:03.3]} 16... Rxg1 {[%clk
0:01:13.7]} 17. Qh5 {[%clk 0:01:57]} 17... f4 {[%clk 0:01:05.6]} 18. O-O-O
{[%clk 0:01:52.1]} 18... Nf8 {[%clk 0:01:05.3]} 19. Nf6+ {[%clk 0:01:41.1]}
19... Kg7 {[%clk 0:01:03.4]} 20. Ng4 {[%clk 0:01:40.7]} 20... Bxg4 {[%clk
0:00:48.5]} 21. hxg4 {[%clk 0:01:41]} 21... f3 {[%clk 0:00:48.2]} 22. Qh2 {[%clk
0:01:22.1]} 22... Rxg4 {[%clk 0:00:44.7]} 23. Bh3 {[%clk 0:01:22.6]} 23... Rg5
{[%clk 0:00:36.3]} 24. Rg1 {[%clk 0:01:21.5]} 24... Rxg1+ {[%clk 0:00:29.6]} 25.
Qxg1+ {[%clk 0:01:22.4]} 25... Ng6 {[%clk 0:00:30.2]} 26. Bf5 {[%clk 0:01:20.1]}
26... Nc5 {[%clk 0:00:29.9]} 27. Kc2 {[%clk 0:01:18.7]} 27... a6 {[%clk
0:00:20.2]} 28. b4 {[%clk 0:01:16.5]} 28... b5 {[%clk 0:00:19.4]} 29. bxc5
{[%clk 0:01:16.4]} 29... bxc4 {[%clk 0:00:19.3]} 30. cxd6 {[%clk 0:01:11.9]}
30... cxd6 {[%clk 0:00:20.2]} 31. Qb1 {[%clk 0:01:06.3]} 31... Kf6 {[%clk
0:00:19.5]} 32. Qb6 {[%clk 0:01:02.6]} 32... Rf8 {[%clk 0:00:17.3]} 33. Qxd6+
{[%clk 0:01:01.8]} 33... Kg5 {[%clk 0:00:18.2]} 34. Bxg6 {[%clk 0:01:01.2]}
34... Rf4 {[%clk 0:00:19.1]} 35. Qxe5+ {[%clk 0:01:00.8]} 35... Kg4 {[%clk
0:00:20]} 36. Qh5# {[%clk 0:00:57.6]} 1-0

[Event "*** Titled Tuesday Blitz"]
[Site "Chess.com"]
[Date "2021.03.09"]
[Round "4"]
[White "IngOscarArdila"]
[Black "kai_nov"]
[Result "1-0"]
[WhiteElo "2259"]
[BlackElo "2423"]
[TimeControl "180+1"]
[EndTime "10:40:46 PST"]
[Termination "IngOscarArdila won on time"]

1. d4 {[%clk 0:02:59.2]} 1... d5 {[%clk 0:02:59.8]} 2. c4 {[%clk 0:02:59.1]}
2... e6 {[%clk 0:02:59]} 3. Nc3 {[%clk 0:02:58.7]} 3... c6 {[%clk 0:02:58.7]} 4.
cxd5 {[%clk 0:02:56.9]} 4... exd5 {[%clk 0:02:58.4]} 5. Nf3 {[%clk 0:02:57]}
5... Nf6 {[%clk 0:02:54.8]} 6. Bg5 {[%clk 0:02:56.7]} 6... h6 {[%clk 0:02:51.9]}
7. Bh4 {[%clk 0:02:56.4]} 7... Bf5 {[%clk 0:02:48.4]} 8. e3 {[%clk 0:02:55.9]}
8... Nbd7 {[%clk 0:02:45.3]} 9. Qb3 {[%clk 0:02:55.3]} 9... Qb6 {[%clk
0:02:42.2]} 10. Be2 {[%clk 0:02:54.1]} 10... Ne4 {[%clk 0:02:33.3]} 11. Nxe4
{[%clk 0:02:44.8]} 11... Qxb3 {[%clk 0:02:29.9]} 12. axb3 {[%clk 0:02:44]} 12...
Bxe4 {[%clk 0:02:25.8]} 13. O-O {[%clk 0:02:42.5]} 13... Bb4 {[%clk 0:02:12.3]}
14. Ra4 {[%clk 0:02:39.1]} 14... a5 {[%clk 0:02:06.2]} 15. Rfa1 {[%clk 0:02:30]}
15... O-O {[%clk 0:02:00.6]} 16. Bd1 {[%clk 0:02:10.9]} 16... f6 {[%clk
0:01:41.4]} 17. Bg3 {[%clk 0:02:09.8]} 17... Rfe8 {[%clk 0:01:39.1]} 18. Bc7
{[%clk 0:02:08.5]} 18... b5 {[%clk 0:01:09.1]} 19. R4a2 {[%clk 0:02:07.4]} 19...
Ra7 {[%clk 0:01:08.6]} 20. Bg3 {[%clk 0:01:56.7]} 20... Rea8 {[%clk 0:01:04.7]}
21. Kf1 {[%clk 0:01:50.2]} 21... Nb6 {[%clk 0:00:42.6]} 22. Rc1 {[%clk
0:01:48.5]} 22... Bd3+ {[%clk 0:00:28.7]} 23. Be2 {[%clk 0:01:48]} 23... Bxe2+
{[%clk 0:00:28.1]} 24. Kxe2 {[%clk 0:01:48]} 24... Rc8 {[%clk 0:00:27.6]} 25.
Nh4 {[%clk 0:01:44.1]} 25... a4 {[%clk 0:00:21.8]} 26. Nf5 {[%clk 0:01:42.9]}
26... Kf7 {[%clk 0:00:16.3]} 27. Bd6 {[%clk 0:01:41.6]} 27... Ba5 {[%clk
0:00:08.9]} 28. Bc5 {[%clk 0:01:39.9]} 28... axb3 {[%clk 0:00:05]} 29. Rxa5
{[%clk 0:01:38.7]} 29... Rxa5 {[%clk 0:00:05.1]} 30. Bxb6 {[%clk 0:01:38.7]}
30... Ra2 {[%clk 0:00:01.9]} 31. Nd6+ {[%clk 0:01:38.5]} 31... Ke6 {[%clk
0:00:02]} 32. Nxc8 {[%clk 0:01:38.5]} 32... Rxb2+ {[%clk 0:00:02.2]} 33. Kd3
{[%clk 0:01:38.7]} 33... Rxf2 {[%clk 0:00:01.1]} 34. Rb1 {[%clk 0:01:34.1]}
34... Rxg2 {[%clk 0:00:01.1]} 35. Rxb3 {[%clk 0:01:34.3]} 35... Rxh2 {[%clk
0:00:01.4]} 36. Rc3 {[%clk 0:01:32]} 36... Kd7 {[%clk 0:00:01.8]} 37. Na7 {[%clk
0:01:30]} 37... b4 {[%clk 0:00:02.2]} 38. Rxc6 {[%clk 0:01:24.9]} 1-0

[Event "*** Titled Tuesday Blitz"]
[Site "Chess.com"]
[Date "2021.03.09"]
[Round "4"]
[White "VFernandezB"]
[Black "BvsN"]
[Result "1-0"]
[WhiteElo "2499"]
[BlackElo "2308"]
[TimeControl "180+1"]
[EndTime "10:40:48 PST"]
[Termination "VFernandezB won by resignation"]

1. e4 {[%clk 0:02:59.4]} 1... c5 {[%clk 0:02:59.9]} 2. Nf3 {[%clk 0:02:59.3]}
2... e6 {[%clk 0:03:00.4]} 3. d4 {[%clk 0:02:59.9]} 3... cxd4 {[%clk 0:03:00.9]}
4. Nxd4 {[%clk 0:03:00.8]} 4... a6 {[%clk 0:03:01.5]} 5. Bd3 {[%clk 0:03:01]}
5... Nf6 {[%clk 0:03:01.2]} 6. O-O {[%clk 0:03:01.3]} 6... Qc7 {[%clk
0:03:01.5]} 7. Qe2 {[%clk 0:03:01.7]} 7... d6 {[%clk 0:03:01.9]} 8. f4 {[%clk
0:03:02]} 8... g6 {[%clk 0:03:00.1]} 9. Kh1 {[%clk 0:03:02.1]} 9... Bg7 {[%clk
0:03:00.4]} 10. c3 {[%clk 0:03:01.9]} 10... O-O {[%clk 0:03:00.4]} 11. Nf3
{[%clk 0:03:02.2]} 11... Nbd7 {[%clk 0:02:59.2]} 12. Nbd2 {[%clk 0:03:01.9]}
12... b5 {[%clk 0:02:56.8]} 13. a4 {[%clk 0:03:01.8]} 13... bxa4 {[%clk
0:02:46.2]} 14. Rxa4 {[%clk 0:02:57.6]} 14... Nc5 {[%clk 0:02:17.5]} 15. Rc4
{[%clk 0:02:57.4]} 15... d5 {[%clk 0:02:10.7]} 16. exd5 {[%clk 0:02:45.1]} 16...
exd5 {[%clk 0:02:10.9]} 17. Rb4 {[%clk 0:02:37.1]} 17... a5 {[%clk 0:01:45.2]}
18. Rd4 {[%clk 0:02:30.8]} 18... Re8 {[%clk 0:00:58.5]} 19. Ne5 {[%clk
0:02:30.6]} 19... Nxd3 {[%clk 0:00:54.9]} 20. Qxd3 {[%clk 0:02:20.2]} 20... Ba6
{[%clk 0:00:54.8]} 21. c4 {[%clk 0:02:20.7]} 21... dxc4 {[%clk 0:00:51.3]} 22.
Qc3 {[%clk 0:02:16.3]} 22... Rad8 {[%clk 0:00:41.6]} 23. Rxd8 {[%clk 0:02:12.8]}
23... Rxd8 {[%clk 0:00:41.6]} 24. Ndf3 {[%clk 0:02:13.2]} 24... Nd5 {[%clk
0:00:31.3]} 25. Qa3 {[%clk 0:01:52.9]} 25... c3 {[%clk 0:00:29.4]} 26. Re1
{[%clk 0:01:52.9]} 26... cxb2 {[%clk 0:00:19.3]} 27. Bxb2 {[%clk 0:01:51.4]}
27... Nxf4 {[%clk 0:00:19.2]} 28. Bc3 {[%clk 0:01:24.8]} 28... Rc8 {[%clk
0:00:16.2]} 29. Bxa5 {[%clk 0:01:23.5]} 29... Qc2 {[%clk 0:00:16.2]} 30. Bd2
{[%clk 0:01:13.2]} 30... Bb7 {[%clk 0:00:16]} 31. Bxf4 {[%clk 0:01:11.4]} 31...
Rd8 {[%clk 0:00:09.8]} 32. Qe7 {[%clk 0:01:00]} 32... Rd1 {[%clk 0:00:07]} 1-0

[Event "*** Titled Tuesday Blitz"]
[Site "Chess.com"]
[Date "2021.03.09"]
[Round "4"]
[White "kidagent"]
[Black "IljaJoke"]
[Result "1-0"]
[WhiteElo "2317"]
[BlackElo "2463"]
[TimeControl "180+1"]
[EndTime "10:40:51 PST"]
[Termination "kidagent won by resignation"]

1. e4 {[%clk 0:03:00.9]} 1... c5 {[%clk 0:02:59.8]} 2. Nf3 {[%clk 0:03:01]} 2...
d6 {[%clk 0:03:00.2]} 3. d4 {[%clk 0:03:01.3]} 3... cxd4 {[%clk 0:03:01.1]} 4.
Nxd4 {[%clk 0:03:01.9]} 4... Nf6 {[%clk 0:03:01.6]} 5. Nc3 {[%clk 0:03:02.5]}
5... a6 {[%clk 0:03:02.1]} 6. Bg5 {[%clk 0:03:02.8]} 6... e6 {[%clk 0:03:02.1]}
7. f4 {[%clk 0:03:02.1]} 7... Be7 {[%clk 0:03:01.4]} 8. Qf3 {[%clk 0:03:01.4]}
8... Qc7 {[%clk 0:03:01.5]} 9. O-O-O {[%clk 0:03:02]} 9... Nbd7 {[%clk
0:03:00.3]} 10. Bd3 {[%clk 0:03:01.6]} 10... b5 {[%clk 0:02:59.1]} 11. Rhe1
{[%clk 0:03:01.7]} 11... b4 {[%clk 0:02:28]} 12. Nd5 {[%clk 0:03:01.2]} 12...
exd5 {[%clk 0:02:26.2]} 13. exd5 {[%clk 0:03:00.9]} 13... Kd8 {[%clk 0:02:25.1]}
14. Nc6+ {[%clk 0:02:47.1]} 14... Ke8 {[%clk 0:01:23.8]} 15. Rxe7+ {[%clk
0:02:45.6]} 15... Kf8 {[%clk 0:01:24.1]} 16. Bxf6 {[%clk 0:02:40.3]} 16... gxf6
{[%clk 0:01:20.8]} 17. Qh3 {[%clk 0:02:37.8]} 17... h5 {[%clk 0:01:08.2]} 18.
Rde1 {[%clk 0:02:35.3]} 18... Nc5 {[%clk 0:00:13.5]} 19. Rxc7 {[%clk 0:01:59.2]}
19... Bxh3 {[%clk 0:00:13]} 20. gxh3 {[%clk 0:01:57]} 20... Nxd3+ {[%clk
0:00:13]} 21. cxd3 {[%clk 0:01:57.3]} 21... Rg8 {[%clk 0:00:13.9]} 22. Ree7
{[%clk 0:01:55.2]} 22... Rg2 {[%clk 0:00:14.2]} 23. Rxf7+ {[%clk 0:01:54.4]}
23... Kg8 {[%clk 0:00:14.4]} 24. Rxf6 {[%clk 0:01:50.4]} 24... Re8 {[%clk
0:00:11.1]} 25. Re7 {[%clk 0:01:50]} 25... Rxe7 {[%clk 0:00:10.2]} 26. Nxe7+
{[%clk 0:01:50]} 26... Kg7 {[%clk 0:00:11]} 27. Rxd6 {[%clk 0:01:47.3]} 27...
Rxh2 {[%clk 0:00:09.7]} 28. Rxa6 {[%clk 0:01:46.1]} 28... Rxh3 {[%clk
0:00:09.7]} 29. Kc2 {[%clk 0:01:44.7]} 29... Rh2+ {[%clk 0:00:08.8]} 30. Kb3
{[%clk 0:01:44.1]} 30... h4 {[%clk 0:00:09.1]} 31. Nf5+ {[%clk 0:01:42.6]} 31...
Kf7 {[%clk 0:00:09.5]} 32. Nxh4 {[%clk 0:01:32.5]} 32... Rxh4 {[%clk 0:00:09]}
33. Kxb4 {[%clk 0:01:32.6]} 33... Rxf4+ {[%clk 0:00:09]} 34. Kc5 {[%clk
0:01:33]} 34... Rf2 {[%clk 0:00:08.8]} 35. b4 {[%clk 0:01:31.5]} 35... Rc2+
{[%clk 0:00:08.4]} 36. Kd6 {[%clk 0:01:31.3]} 36... Rb2 {[%clk 0:00:07.8]} 37.
a3 {[%clk 0:01:30]} 37... Rd2 {[%clk 0:00:06.9]} 38. Kc7 {[%clk 0:01:23.8]}
38... Rxd3 {[%clk 0:00:06.4]} 39. d6 {[%clk 0:01:23.9]} 39... Ke6 {[%clk
0:00:06.5]} 40. d7+ {[%clk 0:01:20.1]} 40... Ke7 {[%clk 0:00:06.8]} 41. d8=Q+
{[%clk 0:01:18.9]} 41... Rxd8 {[%clk 0:00:01.5]} 1-0

[Event "*** Titled Tuesday Blitz"]
[Site "Chess.com"]
[Date "2021.03.09"]
[Round "4"]
[White "suneebaker"]
[Black "atbenina64"]
[Result "0-1"]
[WhiteElo "2221"]
[BlackElo "2510"]
[TimeControl "180+1"]
[EndTime "10:40:52 PST"]
[Termination "atbenina64 won by resignation"]

1. Nf3 {[%clk 0:03:00.9]} 1... Nf6 {[%clk 0:02:59.9]} 2. g3 {[%clk 0:03:00.8]}
2... g6 {[%clk 0:03:00.4]} 3. Bg2 {[%clk 0:03:00.9]} 3... Bg7 {[%clk 0:03:01.3]}
4. O-O {[%clk 0:03:00.8]} 4... O-O {[%clk 0:03:02.2]} 5. c4 {[%clk 0:03:00.9]}
5... c5 {[%clk 0:03:03.1]} 6. Nc3 {[%clk 0:02:59.5]} 6... Nc6 {[%clk 0:03:02.9]}
7. d4 {[%clk 0:02:57.6]} 7... cxd4 {[%clk 0:03:03.8]} 8. Nxd4 {[%clk 0:02:57.6]}
8... Qa5 {[%clk 0:03:03.7]} 9. Nc2 {[%clk 0:02:34.9]} 9... Qh5 {[%clk
0:03:02.4]} 10. h3 {[%clk 0:02:32.3]} 10... d6 {[%clk 0:02:56.4]} 11. g4 {[%clk
0:02:29.5]} 11... Bxg4 {[%clk 0:02:56.1]} 12. hxg4 {[%clk 0:02:29.4]} 12... Nxg4
{[%clk 0:02:57]} 13. Bf4 {[%clk 0:02:29.1]} 13... Be5 {[%clk 0:02:56.3]} 14. Qd2
{[%clk 0:02:20.5]} 14... g5 {[%clk 0:02:49.4]} 15. Bxe5 {[%clk 0:02:06.8]} 15...
Ncxe5 {[%clk 0:02:50.3]} 16. Rfb1 {[%clk 0:01:58]} 16... Qh2+ {[%clk 0:02:47.4]}
17. Kf1 {[%clk 0:01:57.4]} 17... Qh4 {[%clk 0:02:48.3]} 18. Ne4 {[%clk
0:01:49.6]} 18... h6 {[%clk 0:02:47.2]} 19. Ng3 {[%clk 0:01:48.7]} 19... f5
{[%clk 0:02:28.8]} 20. Nd4 {[%clk 0:01:37.8]} 20... Nxf2 {[%clk 0:01:54.7]} 21.
Ndxf5 {[%clk 0:01:06]} 21... Nfg4 {[%clk 0:01:01.9]} 22. Qd5+ {[%clk 0:00:25.3]}
22... Kh8 {[%clk 0:00:57.4]} 23. Qe6 {[%clk 0:00:25.2]} 23... Qxg3 {[%clk
0:00:49]} 24. Kg1 {[%clk 0:00:06]} 24... Qh2+ {[%clk 0:00:45]} 25. Kf1 {[%clk
0:00:05.9]} 25... Rxf5+ {[%clk 0:00:45]} 26. Qxf5 {[%clk 0:00:04.1]} 26... Ne3+
{[%clk 0:00:44.7]} 0-1

[Event "*** Titled Tuesday Blitz"]
[Site "Chess.com"]
[Date "2021.03.09"]
[Round "4"]
[White "niki_2003"]
[Black "noblerone"]
[Result "0-1"]
[WhiteElo "2048"]
[BlackElo "2395"]
[TimeControl "180+1"]
[EndTime "10:40:52 PST"]
[Termination "noblerone won by resignation"]

1. e4 {[%clk 0:03:00.9]} 1... c5 {[%clk 0:02:58.7]} 2. Nf3 {[%clk 0:02:59.6]}
2... e6 {[%clk 0:02:59.1]} 3. d4 {[%clk 0:02:54.3]} 3... cxd4 {[%clk 0:02:58.9]}
4. Nxd4 {[%clk 0:02:53.5]} 4... Qb6 {[%clk 0:02:59.2]} 5. Nc3 {[%clk 0:02:53.4]}
5... Bc5 {[%clk 0:02:58.7]} 6. Be3 {[%clk 0:02:44.9]} 6... Nc6 {[%clk
0:02:57.9]} 7. Ndb5 {[%clk 0:02:38.9]} 7... Bxe3 {[%clk 0:02:56.5]} 8. Nd6+
{[%clk 0:02:38.8]} 8... Ke7 {[%clk 0:02:56]} 9. fxe3 {[%clk 0:02:29.6]} 9...
Qxe3+ {[%clk 0:02:42.8]} 10. Be2 {[%clk 0:02:26.9]} 10... Qc5 {[%clk 0:02:07]}
11. Nxc8+ {[%clk 0:02:07.6]} 11... Rxc8 {[%clk 0:02:05.9]} 12. Qd2 {[%clk
0:02:00.3]} 12... Nf6 {[%clk 0:01:56.7]} 13. O-O-O {[%clk 0:01:55.5]} 13... Rhd8
{[%clk 0:01:42.5]} 14. g4 {[%clk 0:01:50.2]} 14... d6 {[%clk 0:01:24.4]} 15. g5
{[%clk 0:01:48.5]} 15... Nd7 {[%clk 0:01:22.3]} 16. Rhf1 {[%clk 0:01:30.4]}
16... Nce5 {[%clk 0:01:13.4]} 17. Nb5 {[%clk 0:01:15.4]} 17... Nb6 {[%clk
0:00:58.6]} 18. Nc3 {[%clk 0:01:11.2]} 18... Nbc4 {[%clk 0:00:55]} 19. Bxc4
{[%clk 0:00:52.9]} 19... Nxc4 {[%clk 0:00:38.1]} 20. Qf4 {[%clk 0:00:47.8]}
20... Qe3+ {[%clk 0:00:37.8]} 21. Qxe3 {[%clk 0:00:46.4]} 21... Nxe3 {[%clk
0:00:38.7]} 22. Rde1 {[%clk 0:00:46.5]} 22... Nxf1 {[%clk 0:00:39]} 23. Rxf1
{[%clk 0:00:47.4]} 23... a6 {[%clk 0:00:39.3]} 24. Ne2 {[%clk 0:00:43.4]} 24...
Rc4 {[%clk 0:00:38.1]} 25. Ng3 {[%clk 0:00:38.7]} 25... b5 {[%clk 0:00:36.7]}
26. b3 {[%clk 0:00:38.4]} 26... Rc3 {[%clk 0:00:35.5]} 27. Kb2 {[%clk
0:00:37.8]} 27... Rdc8 {[%clk 0:00:35.8]} 28. Rd1 {[%clk 0:00:31.7]} 28... Rxc2+
{[%clk 0:00:35]} 29. Ka3 {[%clk 0:00:31.2]} 29... a5 {[%clk 0:00:32.5]} 0-1

[Event "*** Titled Tuesday Blitz"]
[Site "Chess.com"]
[Date "2021.03.09"]
[Round "4"]
[White "Lestofante90"]
[Black "PotapovaM"]
[Result "1-0"]
[WhiteElo "2741"]
[BlackElo "2518"]
[TimeControl "180+1"]
[EndTime "10:40:53 PST"]
[Termination "Lestofante90 won by resignation"]

1. Nf3 {[%clk 0:03:00.1]} 1... Nf6 {[%clk 0:02:57]} 2. g3 {[%clk 0:03:00.6]}
2... b6 {[%clk 0:02:54.9]} 3. Bg2 {[%clk 0:03:00.8]} 3... Bb7 {[%clk 0:02:55.8]}
4. O-O {[%clk 0:03:00.7]} 4... e6 {[%clk 0:02:55.8]} 5. b3 {[%clk 0:03:00]} 5...
Be7 {[%clk 0:02:55.3]} 6. Bb2 {[%clk 0:03:00.4]} 6... O-O {[%clk 0:02:56]} 7. c4
{[%clk 0:03:00.6]} 7... d5 {[%clk 0:02:48.2]} 8. e3 {[%clk 0:03:00.3]} 8... c5
{[%clk 0:02:44.5]} 9. Nc3 {[%clk 0:02:59.1]} 9... dxc4 {[%clk 0:02:40.2]} 10.
bxc4 {[%clk 0:02:57.5]} 10... Nc6 {[%clk 0:02:40.6]} 11. Qe2 {[%clk 0:02:56.6]}
11... Rc8 {[%clk 0:02:38.8]} 12. Ne1 {[%clk 0:02:50.8]} 12... Qc7 {[%clk
0:02:35]} 13. f4 {[%clk 0:02:48.9]} 13... Rfd8 {[%clk 0:02:33.6]} 14. g4 {[%clk
0:02:48.5]} 14... Ne8 {[%clk 0:02:18.1]} 15. Rb1 {[%clk 0:02:31.7]} 15... Nd6
{[%clk 0:02:17.3]} 16. Ba1 {[%clk 0:02:23.7]} 16... Na5 {[%clk 0:02:16.9]} 17.
d3 {[%clk 0:02:19.9]} 17... Bxg2 {[%clk 0:02:14.3]} 18. Nxg2 {[%clk 0:02:18.9]}
18... Rd7 {[%clk 0:01:50.4]} 19. f5 {[%clk 0:02:17.4]} 19... Rcd8 {[%clk
0:01:41.1]} 20. fxe6 {[%clk 0:02:16.1]} 20... fxe6 {[%clk 0:01:40.7]} 21. Nf4
{[%clk 0:02:16.5]} 21... Re8 {[%clk 0:01:36.9]} 22. Nxe6 {[%clk 0:02:15.4]}
22... Qc6 {[%clk 0:01:37]} 23. Nd5 {[%clk 0:02:14.5]} 23... Ndxc4 {[%clk
0:01:22.6]} 24. Nxg7 {[%clk 0:01:35.6]} 24... Qxd5 {[%clk 0:01:16.3]} 25. dxc4
{[%clk 0:01:29.4]} 25... Nxc4 {[%clk 0:01:05.1]} 26. Nxe8 {[%clk 0:01:26.7]}
26... Qe4 {[%clk 0:00:57.9]} 27. Rbd1 {[%clk 0:00:45.2]} 27... Rxd1 {[%clk
0:00:51.2]} 28. Rxd1 {[%clk 0:00:40.4]} 28... Nxe3 {[%clk 0:00:51.3]} 29. Re1
{[%clk 0:00:37.2]} 29... c4 {[%clk 0:00:28]} 30. Qxe3 {[%clk 0:00:34.2]} 1-0

[Event "*** Titled Tuesday Blitz"]
[Site "Chess.com"]
[Date "2021.03.09"]
[Round "4"]
[White "Nikolakis2014"]
[Black "ikhasu"]
[Result "1-0"]
[WhiteElo "2602"]
[BlackElo "2386"]
[TimeControl "180+1"]
[EndTime "10:40:56 PST"]
[Termination "Nikolakis2014 won on time"]

1. Nf3 {[%clk 0:03:00.9]} 1... Nf6 {[%clk 0:02:58.6]} 2. c4 {[%clk 0:03:00.8]}
2... c5 {[%clk 0:02:56.5]} 3. Nc3 {[%clk 0:03:00.1]} 3... d5 {[%clk 0:02:55.9]}
4. cxd5 {[%clk 0:02:59.8]} 4... Nxd5 {[%clk 0:02:55.7]} 5. e3 {[%clk 0:03:00.2]}
5... g6 {[%clk 0:02:48.5]} 6. Bb5+ {[%clk 0:02:54.7]} 6... Bd7 {[%clk
0:02:47.1]} 7. Bxd7+ {[%clk 0:02:51.7]} 7... Qxd7 {[%clk 0:02:46.9]} 8. Ne5
{[%clk 0:02:51.3]} 8... Qe6 {[%clk 0:02:45.7]} 9. Qa4+ {[%clk 0:02:49.7]} 9...
Kd8 {[%clk 0:02:25.1]} 10. Nf3 {[%clk 0:02:09.7]} 10... Nxc3 {[%clk 0:02:19.4]}
11. dxc3 {[%clk 0:02:09.4]} 11... Nc6 {[%clk 0:02:19.1]} 12. O-O {[%clk
0:02:09.3]} 12... Bg7 {[%clk 0:02:16.8]} 13. Rd1+ {[%clk 0:02:08.7]} 13... Kc7
{[%clk 0:02:16.3]} 14. e4 {[%clk 0:02:08.9]} 14... Rad8 {[%clk 0:02:14.5]} 15.
Bf4+ {[%clk 0:02:08.7]} 15... Kc8 {[%clk 0:02:14.4]} 16. h3 {[%clk 0:02:03.6]}
16... h6 {[%clk 0:02:06.3]} 17. Be3 {[%clk 0:02:01.4]} 17... b6 {[%clk
0:01:30.5]} 18. Qc2 {[%clk 0:01:39.3]} 18... g5 {[%clk 0:01:25]} 19. a4 {[%clk
0:01:36.5]} 19... Rxd1+ {[%clk 0:01:06.4]} 20. Rxd1 {[%clk 0:01:33.6]} 20... Rd8
{[%clk 0:01:06.2]} 21. Ra1 {[%clk 0:01:33.4]} 21... Na5 {[%clk 0:00:56.9]} 22.
Nd2 {[%clk 0:01:32.7]} 22... c4 {[%clk 0:00:52.5]} 23. Nf3 {[%clk 0:01:32.7]}
23... Rd3 {[%clk 0:00:43.8]} 24. Re1 {[%clk 0:01:28.3]} 24... Qd7 {[%clk
0:00:35.8]} 25. Bd4 {[%clk 0:01:28]} 25... Bxd4 {[%clk 0:00:32.8]} 26. cxd4
{[%clk 0:01:28]} 26... f6 {[%clk 0:00:25.5]} 27. b4 {[%clk 0:01:14.4]} 27... g4
{[%clk 0:00:12.9]} 28. hxg4 {[%clk 0:01:09.5]} 28... Qxg4 {[%clk 0:00:12.7]} 29.
Nh2 {[%clk 0:01:02.8]} 29... Qf4 {[%clk 0:00:06.5]} 30. bxa5 {[%clk 0:01:02.5]}
30... Rd2 {[%clk 0:00:06.3]} 31. Qxc4+ {[%clk 0:01:02.7]} 31... Kb8 {[%clk
0:00:06.8]} 32. Nf3 {[%clk 0:01:02.6]} 1-0